Cogmind - Beta 14 @@@ ROGUE MODE // 2025.04.27 @ 23:01:13 Player: SovietPaperclip Result: Self-destructed Performance ------------- Evolutions (2) 1000 Regions Visited (6) 1200 Robots Destroyed (61) 305 Value Destroyed (1352) 1352 Prototype IDs (26) 520 Alien Tech Used (0) 0 Bonus (179) 179 TOTAL SCORE: 4556 Bonus ------- High Alert Combat Kills 72 Follower Combat Kills 107 Cogmind --------- Core Integrity 529/550 Matter 290/300 Energy 280/280 System Corruption 0% Temperature Cool (0) Movement Treading (240) Ox1 Location -8/Materials Parts ------- > --- POWER (1) -------- Heavy Ion Engine > --- PROPULSION (4) --- Light Treads Light Treads Light Treads Light Treads > --- UTILITY (4) ------ Cooling System Huge Storage Unit Seismic Detector Hardened Medium Armor Plating > --- WEAPON (2) ------- Advanced Beam Cannon Heavy Assault Rifle > --- INVENTORY (25) --- Heavy Ion Engine Light Treads Light Treads Compact Wheel Improved Flight Unit Faulty Improved Flight Unit Improved Flight Unit Improved Flight Unit Improved Flight Unit Medium Storage Unit Large Storage Unit Machine Analyzer Advanced Visual Processing Unit Improved Sensor Array Improved Terrain Scanner ECM Suite Light Armor Plating Improved Light Armor Plating Makeshift Hacking Suite Tractor Beam Assault Rifle Rocket Launcher Mini Grenade Launcher Field Lobotomy Kit (5) Peak State ------------ > --- POWER ------------ Heavy Ion Engine > --- PROPULSION ------- Light Treads Light Treads Light Treads Light Treads > --- UTILITY ---------- Cooling System Huge Storage Unit Seismic Detector Improved Light Armor Plating > --- WEAPON ----------- Advanced Beam Cannon Heavy Assault Rifle > --- INVENTORY -------- Heavy Ion Engine Light Treads Light Treads Compact Wheel Improved Flight Unit Improved Flight Unit Improved Flight Unit Improved Flight Unit Improved Flight Unit Medium Storage Unit Large Storage Unit Machine Analyzer Advanced Visual Processing Unit Improved Sensor Array Improved Terrain Scanner ECM Suite Light Armor Plating Hardened Medium Armor Plating Makeshift Hacking Suite Tractor Beam Assault Rifle Rocket Launcher Mini Grenade Launcher Field Lobotomy Kit [Rating: 25] Favorites ----------- Power Heavy Ion Engine Engine Heavy Ion Engine Propulsion Light Treads Treads Light Treads Wheel Compact Wheel Utility Seismic Detector Device Seismic Detector Storage Huge Storage Unit Protection Light Armor Plating Weapon Assault Rifle Energy Gun Particle Gun Energy Cannon Advanced Beam Cannon Ballistic Gun Assault Rifle Build | -11 -10 -9 -9 -9 -8 -8 ------- Run | Yrd Mat Mat Min Exi Min Mat Slots Evolved 4 | . . 2 . . . 2 Power . | . . . . . . . Propulsion 2 | . . 1 . . . 1 Utility 2 | . . 1 . . . 1 Weapon . | . . . . . . . Parts Attached 31 | 7 4 13 . . . 7 Power 4 | 1 . 3 . . . . Engine 4 | 1 . 3 . . . . Core . | . . . . . . . Reactor . | . . . . . . . Propulsion 8 | 3 . 3 . . . 2 Treads 7 | 2 . 3 . . . 2 Leg . | . . . . . . . Wheel 1 | 1 . . . . . . Hover . | . . . . . . . Flight . | . . . . . . . Utility 10 | 1 2 4 . . . 3 Device 3 | . 1 1 . . . 1 Storage 3 | 1 1 1 . . . . Processor . | . . . . . . . Hackware . | . . . . . . . Protection 4 | . . 2 . . . 2 Artifact . | . . . . . . . Weapon 9 | 2 2 3 . . . 2 Energy Gun 2 | . 2 . . . . . Energy Cannon 2 | . . . . . . 2 Ballistic Gun 5 | 2 . 3 . . . . Ballistic Cannon . | . . . . . . . Launcher . | . . . . . . . Special Weapon . | . . . . . . . Impact Weapon . | . . . . . . . Slashing Weapon . | . . . . . . . Piercing Weapon . | . . . . . . . Special Melee Weapon . | . . . . . . . Unidentified Prototypes 2 | . . 1 . . . 1 Parts Lost 3 | . . 3 . . . . Power . | . . . . . . . Propulsion 1 | . . 1 . . . . Utility 2 | . . 2 . . . . Weapon . | . . . . . . . Highest Loss Streak 1 | . . 1 . . . . To Critical Strikes . | . . . . . . . Average Slot Usage (%) 98 | . 98 96 100 100 100 100 Engine 11 | . 14 11 11 11 11 9 Treads 31 | . 28 31 33 33 33 36 Device 12 | . 12 10 11 11 11 18 Storage 11 | . 14 11 11 11 11 9 Protection 6 | . . 9 11 11 11 9 Energy Gun 8 | . 26 2 . . . . Energy Cannon 1 | . . . . . . 7 Ballistic Gun 13 | . 1 19 22 22 22 10 Peak Build Rating 25 | 6 12 15 15 16 16 25 Average Rating 14 | 5 11 12 15 15 16 21 On Entrance 11 | . 6 12 15 15 16 16 Naked Turns . | . . . . . . . Heaviest Build 106 | 14 32 97 97 97 97 106 Greatest Support 80 | 40 40 60 60 60 60 80 Greatest Overweight (x) 1 | 1 . 1 1 1 1 1 Average Overweight (x) . | . . . 1 1 1 1 Largest Inventory Capacity 25 | 8 15 25 25 25 25 25 Average Capacity 19 | 7 13 16 25 25 25 25 Most Carried 24 | 3 13 16 16 18 18 24 Average Carried 14 | 1 11 12 16 16 18 18 Final Capacity 25 | 8 15 25 25 25 25 25 Final Carried 24 | 3 13 16 16 18 18 24 Class Distribution -------------------- 65% | Scavenger-Mutant 34% | Mutant Dominant Class ---------------- Mutant | -10/Materials Scavenger-Mutant | -9/Materials Scavenger-Mutant | -9/Mines Scavenger-Mutant | -9/Exiles Scavenger-Mutant | -8/Mines Scavenger-Mutant | -8/Materials Resources | -11 -10 -9 -9 -9 -8 -8 ----------- Run | Yrd Mat Mat Min Exi Min Mat Matter Collected 996 | 296 50 505 . . . 145 Remotely . | . . . . . . . Salvage Created 2096 | 129 517 1158 . . . 292 Parts 131 | 6 27 84 . . . 14 Haulers Intercepted 6 | . 2 3 . . . 1 Recyclers Shooed 1 | . . . . . . 1 Parts Field Recycled . | . . . . . . . Retrieved Matter . | . . . . . . . Parts Self-Destructed . | . . . . . . . Prevented . | . . . . . . . Kills | -11 -10 -9 -9 -9 -8 -8 ------- Run | Yrd Mat Mat Min Exi Min Mat Combat Hostiles Destroyed 42 | . 11 26 . . . 5 Guns 39 | . 9 26 . . . 4 Cannons 1 | . . . . . . 1 Classes Destroyed 11 | 2 5 4 . . . . Worker 2 | . 1 1 . . . . Builder 1 | . . 1 . . . . Tunneler 2 | 2 . . . . . . Hauler 6 | . 2 3 . . . 1 Recycler 3 | 1 . 1 . . . 1 Mechanic 1 | . . 1 . . . . Operator 1 | . . 1 . . . . Watcher 3 | . 2 1 . . . . Swarmer 17 | . 3 11 . . . 3 Grunt 19 | . 8 10 . . . 1 Sentry 6 | . . 5 . . . 1 Best Kill Streak 9 | 3 3 9 . . . 3 Combat Bots Only 7 | . 3 7 . . . 3 Max Kills in Single Turn 2 | 1 2 2 . . . 1 Gunslinging . | . . . . . . . Exploded . | . . . . . . . Melee . | . . . . . . . Uniques/NPCs Destroyed . | . . . . . . . Combat | -11 -10 -9 -9 -9 -8 -8 -------- Run | Yrd Mat Mat Min Exi Min Mat Hostile Shots Fired 172 | . 49 96 . . . 27 Missed 54 | . 13 34 . . . 7 Damage Taken 1333 | . 429 702 . . . 202 Core 190 | . 46 123 . . . 21 Absorbed by Shields . | . . . . . . . Core Remaining (%) 83 | 100 81 . . . 69 . Volleys Fired 149 | 6 47 79 . . . 17 Largest 2 | 2 2 2 . . . 2 Hottest 130 | 40 130 130 . . . 91 Shots Fired 298 | 12 94 158 . . . 34 Gun 281 | 12 94 158 . . . 17 Cannon 17 | . . . . . . 17 Launcher . | . . . . . . . Special . | . . . . . . . Kinetic 167 | 12 . 138 . . . 17 Thermal 131 | . 94 20 . . . 17 Explosive . | . . . . . . . Electromagnetic . | . . . . . . . Robot Hit Streak 14 | 6 14 12 . . . 12 Robot Miss Streak 3 | 1 2 3 . . . 2 Penetration Max . | . . . . . . . Secondary Targets 2 | . 1 1 . . . . Max Gunslinging Chain 1 | . 1 1 . . . . Shots Hit Robots 209 | 8 68 108 . . . 25 Core Hits 87 | 4 22 51 . . . 10 Critical Kills . | . . . . . . . Critical Parts Destroyed . | . . . . . . . Critical Strikes 4 | . 4 . . . . . Burn 4 | . 4 . . . . . Melee Attacks . | . . . . . . . Impact . | . . . . . . . Slashing . | . . . . . . . Piercing . | . . . . . . . Sneak Attacks . | . . . . . . . Combat Hostiles . | . . . . . . . Follow-up Attacks . | . . . . . . . Damage Inflicted 3278 | 101 1075 1655 . . . 447 Guns 2848 | 101 1075 1492 . . . 180 Cannons 267 | . . . . . . 267 Explosions 163 | . . 163 . . . . Melee . | . . . . . . . Ramming . | . . . . . . . Kinetic 1599 | 101 . 1318 . . . 180 Thermal 1516 | . 1075 174 . . . 267 Explosive 163 | . . 163 . . . . Electromagnetic . | . . . . . . . Impact . | . . . . . . . Slashing . | . . . . . . . Piercing . | . . . . . . . Highest Corruption 3 | . 3 . . . . . Average Corruption 2 | . 2 . . . . . Corruption Purged . | . . . . . . . Corruption Blocked . | . . . . . . . Effects 10 | . 10 . . . . . Message Errors 3 | . 3 . . . . . Heat Flow Errors 2 | . 2 . . . . . Energy Discharges 2 | . 2 . . . . . Data Loss (minor) 1 | . 1 . . . . . Data Loss (major) 1 | . 1 . . . . . Alerts 1 | . 1 . . . . . Overload Shots . | . . . . . . . Overflow Damage 1 | . . . . . . 1 Projectiles 1 | . . . . . . 1 Explosions . | . . . . . . . Melee . | . . . . . . . Knockbacks . | . . . . . . . Impact . | . . . . . . . Kinetic . | . . . . . . . Secondary . | . . . . . . . Self-Inflicted Damage . | . . . . . . . Shots . | . . . . . . . Rammed . | . . . . . . . Targets Rammed . | . . . . . . . Kicked . | . . . . . . . Crushed . | . . . . . . . Highest Temperature 370 | . 288 370 . . . . Average Temperature 84 | . 78 104 . . . . Received Heat Transfer 483 | . 222 225 . . . 36 Effects 3 | . 1 2 . . . . Shutdowns 1 | . . 1 . . . . Energy Bleed 1 | . 1 . . . . . Short Circuit 1 | . . 1 . . . . Siege Activations . | . . . . . . . Robots Corrupted . | . . . . . . . Combat Hostiles . | . . . . . . . Parts Fried . | . . . . . . . Impact Corruptions . | . . . . . . . Robots Melted 2 | . 2 . . . . . Combat Hostiles 2 | . 2 . . . . . Parts Melted 5 | . 4 1 . . . . Heat Transferred 3774 | . 2886 407 . . . 481 Parts Sabotaged . | . . . . . . . Parts Stolen . | . . . . . . . Parts Stripped . | . . . . . . . Power Chain Reactions . | . . . . . . . Alert | -11 -10 -9 -9 -9 -8 -8 ------- Run | Yrd Mat Mat Min Exi Min Mat Peak Influence 721 | 15 194 721 280 . . 197 Initial 280 | . 9 30 280 . . . Average 170 | 5 67 367 280 . . 71 Maximum Alert Level 3 | . . 3 1 . . . Low Security (%) 74 | 100 100 32 . . 100 100 Level 1 9 | . . 18 100 . . . Level 2 12 | . . 39 . . . . Level 3 3 | . . 9 . . . . Level 4 . | . . . . . . . Level 5 . | . . . . . . . High Security . | . . . . . . . Max Security . | . . . . . . . Squads Dispatched 2 | . . 2 . . . . Investigation . | . . . . . . . Extermination . | . . . . . . . Reinforcement 2 | . . 2 . . . . Assault . | . . . . . . . Garrison . | . . . . . . . Intercept . | . . . . . . . Searches Triggered . | . . . . . . . Construction Impeded . | . . . . . . . Haulers Reinforced . | . . . . . . . Active Scanning Responses . | . . . . . . . Cargo Convoy Interrupts . | . . . . . . . Stealth | -11 -10 -9 -9 -9 -8 -8 --------- Run | Yrd Mat Mat Min Exi Min Mat Distress Signals 9 | . 1 8 . . . . Communications Jammed . | . . . . . . . Distress Signals . | . . . . . . . Times Spotted 74 | . 20 45 . . . 9 Peak Tracking Total 6 | . 3 6 . . . 3 Tactical Retreats 10 | . 5 4 . . . 1 Traps | -11 -10 -9 -9 -9 -8 -8 ------- Run | Yrd Mat Mat Min Exi Min Mat Traps Triggered 2 | . 2 . . . . . Indirectly . | . . . . . . . Trap Hack Attempts . | . . . . . . . Triggered . | . . . . . . . Disarmed . | . . . . . . . Reprogrammed . | . . . . . . . Reused . | . . . . . . . Traps Extracted . | . . . . . . . Installed . | . . . . . . . Triggered . | . . . . . . . Machines | -11 -10 -9 -9 -9 -8 -8 ---------- Run | Yrd Mat Mat Min Exi Min Mat Machines Disabled 6 | . . 6 . . . . Max in Single Turn 5 | . . 5 . . . . Machines Repaired . | . . . . . . . Machines Dismantled . | . . . . . . . Machines Sabotaged . | . . . . . . . Overloaded Fab Kills . | . . . . . . . Hacking | -11 -10 -9 -9 -9 -8 -8 --------- Run | Yrd Mat Mat Min Exi Min Mat Machines Accessed 10 | . 3 3 . 2 . 2 Terminals 7 | . 3 3 . . . 1 Fabricators . | . . . . . . . Repair Stations . | . . . . . . . Recycling Units . | . . . . . . . Scanalyzers 1 | . . . . . . 1 Garrison Access . | . . . . . . . Total Hacks 25 | . 11 8 . 2 . 4 Successful 8 | . 3 1 . 2 . 2 Failed 17 | . 8 7 . . . 2 Catastrophic 3 | . 2 1 . . . . Database Lockouts . | . . . . . . . Manual 19 | . 7 8 . 2 . 2 Terminals 21 | . 11 8 . . . 2 Fabricators . | . . . . . . . Repair Stations . | . . . . . . . Recycling Units . | . . . . . . . Scanalyzers 2 | . . . . . . 2 Garrison Access . | . . . . . . . Terminal Hacks 4 | . 2 . . 2 . . Record 1 | . . . . 1 . . Part Schematic 1 | . 1 . . . . . Branch Access Points 1 | . 1 . . . . . Derelict Proto ID Bank 1 | . . . . 1 . . Fabricator Hacks . | . . . . . . . Repair Station Hacks . | . . . . . . . Recycling Unit Hacks . | . . . . . . . Scanalyzer 1 | . . . . . . 1 Insert Component 1 | . . . . . . 1 Garrison Access Hacks . | . . . . . . . Unauthorized Hacks 3 | . 1 1 . . . 1 Terminals 3 | . 1 1 . . . 1 Botnet 3 | . 1 1 . . . 1 Fabricators . | . . . . . . . Repair Stations . | . . . . . . . Recycling Units . | . . . . . . . Scanalyzers . | . . . . . . . Garrison Access . | . . . . . . . Data Cores Recovered . | . . . . . . . Used . | . . . . . . . Hacking Detections 7 | . 3 3 . . . 1 Full Trace Events . | . . . . . . . Feedback Events . | . . . . . . . Feedback Blocked . | . . . . . . . Robot Schematics Acquired . | . . . . . . . Robots Built . | . . . . . . . Authchips . | . . . . . . . Time . | . . . . . . . Total Robot Build Rating . | . . . . . . . Part Schematics Acquired 1 | . 1 . . . . . Parts Built . | . . . . . . . Authchips . | . . . . . . . Time . | . . . . . . . Total Part Build Rating . | . . . . . . . Parts Repaired . | . . . . . . . Time . | . . . . . . . Parts Recycled . | . . . . . . . Recycled Matter . | . . . . . . . Retrieved Matter . | . . . . . . . Retrieved Components . | . . . . . . . Parts Scanalyzed . | . . . . . . . Part Schematics Acquired . | . . . . . . . Parts Damaged . | . . . . . . . Bothacking | -11 -10 -9 -9 -9 -8 -8 ------------ Run | Yrd Mat Mat Min Exi Min Mat Used RIF Installer . | . . . . . . . Robots Hacked . | . . . . . . . Non-combat . | . . . . . . . Combat . | . . . . . . . Robot Hacks Applied . | . . . . . . . Relay Couplers Released . | . . . . . . . Fabnet Peak Effective % . | . . . . . . . Robots Rewired 3 | . . . . 3 . . Allies Hacked . | . . . . . . . Hacks Repelled . | . . . . . . . Allies | -11 -10 -9 -9 -9 -8 -8 -------- Run | Yrd Mat Mat Min Exi Min Mat Total Allies 3 | . . . . 3 . . Largest Group 3 | . . . . 3 3 3 Highest-Rated Group 37 | . . . . 37 37 37 Highest-Rated Ally 21 | . . . . 21 21 21 Total Orders . | . . . . . . . Ally Attacks 14 | . . . . . . 14 Total Damage 222 | . . . . . . 222 Kills 3 | . . . . . . 3 Allies Corrupted . | . . . . . . . Allies Melted . | . . . . . . . Intel | -11 -10 -9 -9 -9 -8 -8 ------- Run | Yrd Mat Mat Min Exi Min Mat Robot Analysis Total . | . . . . . . . Derelict Logs Recovered 1 | . . . 1 . . . Drone Launches . | . . . . . . . Drone Recoveries . | . . . . . . . Exploration | -11 -10 -9 -9 -9 -8 -8 ------------- Run | Yrd Mat Mat Min Exi Min Mat Turns Passed 4213 | 80 1221 1044 106 1066 123 573 Spaces Moved 1711 | 35 624 334 43 431 52 192 Core 3 | 3 . . . . . . Treads 1701 | 25 624 334 43 431 52 192 Legs . | . . . . . . . Wheels 7 | 7 . . . . . . Hover . | . . . . . . . Flight . | . . . . . . . Fastest Speed 50 | 50 160 160 240 240 240 240 Average Speed 196 | 141 160 177 240 240 240 240 Slowest Speed 240 | 160 160 240 240 240 240 240 Overloaded Moves . | . . . . . . . Propulsion Burnouts . | . . . . . . . Robots Hopped . | . . . . . . . Cave-ins Triggered . | . . . . . . . Exploration Rate (%) 41 | 3 97 35 12 91 27 23 Regions Visited 6 Branch Regions 3 Pre-discovered Areas 2 | . . . 1 1 . . Known Exits Taken . | . . . . . . . Unknown Exits Taken 6 | 1 1 1 1 1 1 . Scrap Searched . | . . . . . . . Spaces Dug . | . . . . . . . Terrain Destroyed 14 | . . 14 . . . . Melee . | . . . . . . . Projectile . | . . . . . . . AOE 14 | . . 14 . . . . Terrain Rammed . | . . . . . . . Walls Destroyed . | . . . . . . . Machines Disabled . | . . . . . . . Actions | -11 -10 -9 -9 -9 -8 -8 --------- Run | Yrd Mat Mat Min Exi Min Mat Total 2263 | 50 752 629 47 464 51 270 Wait 292 | . 67 180 5 . . 40 Move 1705 | 34 623 333 42 430 51 192 Hop . | . . . . . . . Pick Up 41 | 3 10 15 . 2 . 11 Fast Attach 9 | 6 1 2 . . . . Attach 9 | . . 5 . . . 4 Detach . | . . . . . . . Swap 13 | 1 3 6 . . . 3 Drop 13 | . 1 9 . . . 3 Fire 149 | 6 47 79 . . . 17 Melee . | . . . . . . . Ram . | . . . . . . . Kick . | . . . . . . . Crush . | . . . . . . . Escape Stasis . | . . . . . . . Rewire 32 | . . . . 32 . . Trap . | . . . . . . . Miscellaneous . | . . . . . . . Route ------- -11/Scrapyard -10/Materials (discovered 5 exits: *Mat x3 / *Min x2) -9/Materials -9/Mines -9/Exiles -8/Mines -8/Materials History --------- Turn | Location | Event 12 | -11/Scrapyard | Discovered new exit (range 15) 81 | -11/Scrapyard | Entered Materials 118 | -10/Materials | Identified exit to Mines 313 | -10/Materials | Build established: Mutant 651 | -10/Materials | Discovered new exit (range 14) 767 | -10/Materials | Discovered new exit (range 16) 984 | -10/Materials | Discovered new exit (range 16) 1302 | -10/Materials | Entered another Materials area 1302 | -9/Materials | Evolved 2 slots: Propulsion x1, Utility x1 1704 | -9/Materials | Destroyed 7 combat bots 1777 | -9/Materials | Build established: Scavenger-Mutant 2126 | -9/Materials | Discovered new exit (range 11) 2346 | -9/Materials | Entered Mines 2390 | -9/Mines | Learned location of Zion (-7) 2392 | -9/Mines | Met a Derelict bent on vengeance 2440 | -9/Mines | Deemed a non-threat by the Exiles lab entrance 2443 | -9/Mines | Discovered new exit (range 5) 2452 | -9/Mines | Entered Exiles 2452 | -9/Exiles | Found Exiles lab destroyed 2835 | -9/Exiles | Opened EX-Vault 2844 | -9/Exiles | Found Field Lobotomy Kit 3499 | -9/Exiles | Discovered new exit (range 10) 3518 | -9/Exiles | Entered Mines 3518 | -8/Mines | Accompanied by 3 allies 3622 | -8/Mines | Discovered new exit (range 8) 3641 | -8/Mines | Entered Materials 3641 | -8/Materials | Accompanied by 3 allies 3641 | -8/Materials | Evolved 2 slots: Propulsion x1, Utility x1 4214 | -8/Materials | Self-destructed Last Messages --------------- 03897_ R-06 Scavenger collects Flight Unit. 03904_ R-06 Scavenger collects Heat Sink. 03921_ G-47 Trooper destroyed. 03924_ Acquired 12 matter. 03936_ Acquired Imp. Light Armor Plating. 03945_ A-02 Transporter destroyed. 03945_ R-06 Scavenger collects Aluminum Leg. 03949_ R-06 Scavenger collects Lgt. Nuclear Core. 03956_ R-06 Scavenger collects Prototype Flight Unit. 03965_ R-06 Scavenger destroyed. 03968_ Acquired Prototype Flight Unit. 03973_ Acquired 25 matter. 03977_ Acquired Prototype Flight Unit. 04011_ K-01 Serf collects debris. 04036_ Connecting with Scanalyzer... >>Insert(Prototype Flight Unit) Scanning Imp. Flight Unit... Ready to analyze. 04136_ Acquired Adv. Visual Processing Unit. 04154_ Acquired Hrd. Medium Armor Plating. Map ----- +----------------------------------------------------+ | ???????????????????????????????????# ! = | | ???????????????????????????????????# [% [ ! | | ???????????????????????????????????#^ * | | ???????????????????????????????????# !*% | | ????????????????????????????????? + ^""" | | ???????????????????????????????# # """ | | ???????????????????????????????# ??# """ | | ???????????????????????????????#???######### | | ??????????????????????????????# ######## | | ???????????????????????? ?? | | ???????????????????????# ?? | | ???????????????????????# ? ! | | ???????????????????????# #??# ######## | | ???????????????????????# #??###????????# | | ???????????????????????# #?????????????# | | ???????????????????????# #?????????????# | | ???????????#??????##???# #?????????????# | | ???????????? ? #??# #?????????????# " | | ???????????? """ #??# #?????????????# " | | ???????????? [ """ #??# #?????????????# " | | ????????????? """ #??# #?????????????# | | ???????????+ #??# #?????????????### | | ???????????# """ #??# ################# | | ???????????#% """ #### | | ???????????# """ + ############## | | ???????????# @#### #????????????# | | ???????????##############+######????????# | | ???????????????????# ! [#??????###+## | | ???????????????????# #??????# | | ???????????????????# """ """ #??????# """ | | ???????????????????# """"""""" #??????# """ | | ???????????????????# """"" " #??????# """ | | ???????????????????# #??????# | | ???????????????????#! = #??????# = ! | | ???????????????????#############??????###### | | | | | | | | | | | | | | | | | | | | | | | | | | | | | | | +----------------------------------------------------+ Best States ------------- Heat Dissipation 53 Energy Generation 14 Energy Capacity 280 Matter Stores 300 Matter Capacity 300 Sight Range 16 Terrain Scan Density 10 Armor Coverage 225 Evasion (%) 40 Recoil Reduction 4 Item Schematics ----------------- Cargo Storage Unit | -10/Materials | Hacked Robot Schematics ------------------ None Fabricated ------------ Nothing Alien Tech Used ----------------- None Achievements -------------- None Challenges ------------ None Game ------ Seed RegenerativeOvertunedModule Manual? 0 Play Time 00:19:07 Cumulative 159.0 hours Start 2025.04.24 @ 13:20:22 End 2025.04.27 @ 23:01:13 Sessions 3 Manual Loads 0 Difficulty Rogue Special Mode None Game No. 239 Rogue 239 Adventurer 0 Explorer 0 Win Type - Total 1 Types 1/0/0/0/0/0/0/0/0 Lore% 56 Gallery% 59 Achievement% 53 Wizard Run 0 Options --------- Layout 1 ASCII 0 Keyboard 0 Movement Numpad Keybinds 0 Fullscreen 1 Font 32/SmallcapsGlow Map View 77x35 Zoom Use 0% Tactical HUD 1 Map Filters NONE Filters NONE Steam 1 RUN: 94836db4-ddeb-49d1-a15c-9efb7128b235